fUSD/lending_fUSD_20260111
["ID","MTS","AMOUNT","RATE_DAILY","PERIOD"]
[401381157,1768169299024,-500.0,0.00014089,2]
[401381158,1768169299046,-500.0,0.00014089,2]
[401381159,1768169299068,-500.0,0.00014089,2]
[401381160,1768169299090,-500.0,0.00014089,2]
[401381161,1768169299112,-500.0,0.00014089,2]
[401381162,1768169299134,-1000.0,0.0001409,2]
[401381163,1768169299156,-33591.7849,0.0001409,2]
[401381164,1768169299182,-592764.28776559,0.0001409,2]
[401381165,1768169391503,500.0,0.00013875,3]
[401381166,1768169392213,-150.0,0.00013918,2]
[401381167,1768169392236,-31.4729073,0.0001399,2]
[401381168,1768169394959,-157.12815431,0.0001399,2]
[401381180,1768169431612,-25290.0,0.00013981,2]
[401381181,1768169431624,-328.0184482,0.00013981,2]
[401381182,1768169431635,-3836.35208633,0.00013981,2]
[401381183,1768169431722,-1577.31071769,0.00013981,2]
[401381184,1768169434020,-4187.13825808,0.00013981,2]
[401381185,1768169437643,-1680.96,0.00013981,2]
[401381186,1768169437702,-5275.90333579,0.00013981,2]
[401381187,1768169437714,-3039.84169753,0.00013981,2]
[401381188,1768169437725,-2418.07525,0.00013981,2]
[401381189,1768169437759,-369.32,0.00013981,2]
[401381190,1768169437771,-365.39486478,0.00013981,2]
[401381191,1768169437783,-651.08555112,0.00013981,2]
[401381192,1768169437819,-634.00000025,0.00013981,2]
[401381388,1768169439877,-912.88118707,0.00013981,2]
[401381391,1768169439890,-7839.99911758,0.00013981,2]
[401381393,1768169439900,-905.68873767,0.00013981,2]
[401381395,1768169439912,-311.8599925,0.00013981,2]
[401381397,1768169439924,-12330.51427449,0.00013981,2]
[401381399,1768169439935,-10080.0,0.00013981,2]
[401381402,1768169439951,-917965.65648092,0.00013981,2]
[401381404,1768169439961,-1200.0,0.00013989,2]
[401381406,1768169439970,-300.0,0.00013989,2]
[401381408,1768169439979,-265.0,0.00013989,2]
[401381410,1768169439988,-9878.3024,0.00013989,2]
[401381412,1768169439998,-33395.74633839,0.0001399,2]
[401381415,1768169440011,-1000.0,0.0001399,2]
[401381417,1768169440021,-2500.0,0.0001399,2]
[401381419,1768169440030,-303.02748984,0.00014057,2]
[401381421,1768169440040,-1901.78950089,0.00014086,2]
[401381423,1768169440050,-234.23629977,0.00014086,2]
[401381425,1768169440060,-231.90025202,0.00014086,2]
[401381427,1768169440070,-500.0,0.00014089,2]
[401381429,1768169440079,-500.0,0.00014089,2]
[401381431,1768169440089,-160.96416056,0.00014089,2]
[401381433,1768169440098,-300.0,0.00014089,2]
[401381435,1768169440108,-150.0,0.00014089,2]
[401381437,1768169440117,-300.0,0.00014089,2]
[401381439,1768169440127,-303.02748984,0.00014089,2]
[401381441,1768169440136,-16321.49556422,0.00014089,2]
[401381443,1768169440145,-166.66,0.0001413,2]
[401381445,1768169440156,-1000.0,0.00014157,2]
[401381447,1768169440165,-500.0,0.00014189,2]
[401381449,1768169440175,-500.0,0.00014189,2]
[401381451,1768169440184,-500.0,0.00014189,2]
[401381453,1768169440193,-500.0,0.00014189,2]
[401381455,1768169440202,-500.0,0.00014189,2]
[401381457,1768169440211,-500.0,0.00014189,2]
[401381459,1768169440221,-500.0,0.00014189,2]
[401381461,1768169440231,-500.0,0.00014189,2]
[401381463,1768169440240,-500.0,0.00014189,2]
[401381465,1768169440250,-500.0,0.00014189,2]
[401381467,1768169440260,-500.0,0.00014189,2]
[401381469,1768169440270,-500.0,0.00014189,2]
[401381472,1768169440280,-500.0,0.00014189,2]
[401381474,1768169440290,-500.0,0.00014189,2]
[401381476,1768169440302,-500.0,0.00014189,2]
[401381478,1768169440311,-500.0,0.00014189,2]
[401381480,1768169440321,-500.0,0.00014189,2]
[401381482,1768169440330,-500.0,0.00014189,2]
[401381484,1768169440340,-500.0,0.00014189,2]
[401381486,1768169440349,-500.0,0.00014189,2]
[401381488,1768169440359,-500.0,0.00014189,2]
[401381490,1768169440368,-500.0,0.00014189,2]
[401381492,1768169440382,-317.23562895,0.00014189,2]
[401381494,1768169440391,-1544.2,0.00014355,2]
[401381496,1768169440401,-200.0,0.00014357,2]
[401381498,1768169440411,-500.0,0.00014391,2]
[401381500,1768169440420,-500.0,0.00014391,2]
[401381502,1768169440430,-500.0,0.00014391,2]
[401381505,1768169440440,-500.0,0.00014391,2]
[401381507,1768169440450,-500.0,0.00014391,2]
[401381509,1768169440462,-500.0,0.00014391,2]
[401381511,1768169440472,-500.0,0.00014391,2]
[401381513,1768169440482,-500.0,0.00014391,2]
[401381515,1768169440492,-500.0,0.00014391,2]
[401381517,1768169440502,-500.0,0.00014391,2]
[401381519,1768169440512,-500.0,0.00014391,2]
[401381521,1768169440523,-500.0,0.00014391,2]
[401381523,1768169440535,-500.0,0.00014391,2]
[401381525,1768169440545,-261.10675148,0.00014391,2]
[401381527,1768169440554,-500.0,0.00014391,2]
[401381529,1768169440564,-500.0,0.00014391,2]
[401381530,1768169440574,-500.0,0.00014391,2]
[401381532,1768169440584,-500.0,0.00014391,2]
[401381535,1768169440597,-500.0,0.00014391,2]
[401381537,1768169440607,-542.67459147,0.00014391,2]
[401381539,1768169440617,-500.0,0.00014391,2]
[401381585,1768169441042,-556.98175584,0.00014391,2]
[401381587,1768169441058,-500.0,0.00014391,2]
[401381589,1768169441067,-500.0,0.00014391,2]
[401381591,1768169441076,-500.0,0.00014391,2]
[401381593,1768169441085,-500.0,0.00014391,2]
[401381595,1768169441094,-500.0,0.00014391,2]
[401381597,1768169441104,-500.0,0.00014391,2]
[401381599,1768169441114,-500.0,0.00014391,2]
[401381601,1768169441123,-500.0,0.00014391,2]
[401381603,1768169441132,-500.0,0.00014391,2]
[401381605,1768169441141,-500.0,0.00014391,2]
[401381607,1768169441150,-500.0,0.00014391,2]
[401381609,1768169441159,-500.0,0.00014391,2]
[401381611,1768169441168,-500.0,0.00014391,2]
[401381613,1768169441178,-500.0,0.00014391,2]
[401381615,1768169441187,-500.0,0.00014391,2]
[401381617,1768169441197,-500.0,0.00014391,2]
[401381619,1768169441207,-500.0,0.00014391,2]
[401381621,1768169441216,-500.0,0.00014391,2]
[401381623,1768169441225,-500.0,0.00014391,2]
[401381625,1768169441234,-500.0,0.00014391,2]
[401381627,1768169441243,-506.06363535,0.00014391,2]
[401381629,1768169441254,-15536.74710795,0.00014424,2]
[401381631,1768169441263,-930.25806929,0.00014494,2]
[401381633,1768169441273,-9999.99,0.00014504,2]
[401381635,1768169441282,-499.99,0.00014504,2]
[401381637,1768169441291,-150.99,0.00014504,2]
[401381639,1768169441300,-39761.5,0.00014504,2]
[401381641,1768169441309,-9999.99,0.00014504,2]
[401381643,1768169441321,-150.99,0.00014504,2]
[401381645,1768169441330,-13969.27,0.00014504,2]
[401381647,1768169441339,-9999.99,0.00014504,2]
[401381649,1768169441349,-464.4,0.00014504,2]
[401381651,1768169441358,-20124.8,0.00014504,2]
[401381653,1768169441368,-999.99,0.00014504,2]
[401381655,1768169441377,-299.99,0.00014504,2]
[401381657,1768169441386,-9999.99,0.00014504,2]
[401381660,1768169441403,-16321.49556416,0.00014512,2]
[401381662,1768169441416,-5841.68153071,0.00014559,2]
[401381664,1768169441426,-166.66,0.00014596,2]
[401381666,1768169441436,-303.02748983,0.00014606,2]
[401381668,1768169441446,-1544.2,0.00014629,2]
[401381670,1768169441456,-330.0939675,0.00014629,2]
[401381672,1768169441467,-200.0,0.00014629,2]
[401381674,1768169441477,-303.02748983,0.00014633,2]
[401381676,1768169441486,-500.0,0.00014665,2]
[401381678,1768169441496,-500.0,0.00014691,2]
[401381680,1768169441505,-1010.95150876,0.00014697,2]
[401381682,1768169441515,-15536.74710795,0.00014859,2]
[401381684,1768169441524,-1544.2,0.00014903,2]
[401381687,1768169441534,-16321.49556416,0.00014936,2]
[401381689,1768169441545,-500.0,0.00014939,2]
[401381691,1768169441555,-1852.42,0.00015053,2]
[401381693,1768169441565,-166.66,0.00015062,2]
[401381695,1768169441574,-303.02748983,0.00015155,2]
[401381696,1768169441584,-1544.2,0.00015177,2]
[401381698,1768169441598,-200.0,0.00015177,2]
[401381701,1768169441608,-303.02748983,0.00015178,2]
[401381703,1768169441618,-3240.0,0.00015202,2]
[401381705,1768169441627,-255.0,0.00015216,2]
[401381707,1768169441639,-15536.74710795,0.00015293,2]
[401381709,1768169441649,-533.84953358,0.00015309,2]
[401381710,1768169441659,-500.0,0.00015309,2]
[401381713,1768169441671,-151.0,0.00015322,2]
[401381714,1768169441681,-420.0,0.00015326,2]
[401381715,1768169441690,-151.0,0.00015328,2]
[401381716,1768169441700,-16321.49556416,0.00015359,2]
[401381717,1768169441709,-1862.70122449,0.00015388,2]
[401381718,1768169441718,-336.92042657,0.00015388,2]
[401381719,1768169441727,-250.0,0.00015388,2]
[401381720,1768169441737,-733.5192986,0.00015388,2]
[401381721,1768169441746,-600.0,0.00015388,2]
[401381722,1768169441755,-315.53488248,0.00015388,2]
[401381724,1768169441769,-195.0,0.00015388,2]
[401381726,1768169441779,-250.0,0.00015388,2]
[401381728,1768169441789,-1680.0,0.00015388,2]
[401381730,1768169441799,-420.0,0.00015434,2]
[401381732,1768169441809,-420.0,0.00015434,2]
[401381734,1768169441818,-1544.2,0.00015451,2]
[401381736,1768169441829,-193.11,0.00015521,2]
[401381738,1768169441839,-166.66,0.00015529,2]
[401381740,1768169441848,-360.17683286,0.00015543,2]
[401381742,1768169441859,-500.0,0.00015543,2]
[401381744,1768169441869,-303.02748983,0.00015722,2]
[401381746,1768169441879,-1544.2,0.00015725,2]
[401381748,1768169441889,-15536.74710795,0.00015728,2]
[401381750,1768169441899,-16321.49556416,0.00015783,2]
[401381752,1768169441909,-512.95515416,0.00015899,2]
[401381754,1768169441919,-500.0,0.00015899,2]
[401381756,1768169441929,-500.0,0.00015899,2]
[401381758,1768169441938,-568.66331461,0.00015899,2]
[401381760,1768169441948,-198.60836652,0.00015899,2]
[401381762,1768169441958,-1299.0559193,0.000159,2]
[401381764,1768169441968,-1299.05591928,0.000159,2]
[401381766,1768169441978,-1299.05591928,0.000159,2]
[401381768,1768169441987,-1299.05591928,0.000159,2]
[401381770,1768169441998,-1299.05591928,0.000159,2]
[401381772,1768169442008,-1299.05591928,0.000159,2]
[401381774,1768169442019,-1000.0,0.00015918,2]
[401381776,1768169442028,-166.66,0.00015995,2]
[401381778,1768169442039,-1544.2,0.00015999,2]
[401381780,1768169442049,-1000.0,0.00016078,2]
[401381783,1768169442058,-670.48,0.000161,2]
[401381785,1768169442069,-15536.74710795,0.00016162,2]
[401381787,1768169442079,-150.0,0.000162,2]
[401381789,1768169442089,-150.0,0.000162,2]
[401381791,1768169442098,-150.0,0.000162,2]
[401381793,1768169442108,-496.45188591,0.000162,2]
[401381795,1768169442118,-150.0,0.000162,2]
[401381797,1768169442131,-150.0,0.000162,2]
[401381799,1768169442141,-150.0,0.000162,2]
[401381801,1768169442152,-150.0,0.000162,2]
[401381803,1768169442161,-150.0,0.000162,2]
[401381805,1768169442171,-150.0,0.000162,2]
[401381807,1768169442183,-150.0,0.000162,2]
[401381809,1768169442193,-150.0,0.000162,2]
[401381812,1768169442202,-150.0,0.000162,2]
[401381814,1768169442212,-150.0,0.000162,2]
[401381816,1768169442221,-150.0,0.000162,2]
[401381818,1768169442230,-16321.49556416,0.00016206,2]
[401381820,1768169442240,-496.45188591,0.00016218,2]
[401381822,1768169442250,-496.45188591,0.00016236,2]
[401381824,1768169442259,-496.45188591,0.00016255,2]
[401381826,1768169442270,-496.45188591,0.00016273,2]
[401381828,1768169442279,-1544.2,0.00016273,2]
[401381830,1768169442289,-150.0,0.0001629,2]
[401381832,1768169442299,-496.45188591,0.00016291,2]
[401381834,1768169442308,-150.0,0.00016306,2]
[401381836,1768169442319,-496.45188591,0.00016309,2]
[401381839,1768169442332,-150.0,0.00016312,2]
[401381841,1768169442342,-496.45188591,0.00016327,2]
[401381843,1768169442352,-150.0,0.00016329,2]
[401381845,1768169442362,-150.0,0.00016338,2]
[401381847,1768169442372,-496.45188591,0.00016345,2]
[401381849,1768169442382,-496.45188591,0.00016364,2]
[401381851,1768169442391,-150.0,0.00016364,2]
[401381853,1768169442401,-150.0,0.0001638,2]
[401381855,1768169442410,-150.0,0.0001638,2]
[401381857,1768169442420,-496.45188591,0.00016382,2]
[401381859,1768169442430,-496.45188591,0.000164,2]
[401381862,1768169442440,-150.0,0.00016412,2]
[401381865,1768169442450,-496.45188591,0.00016418,2]
[401381869,1768169442460,-150.0,0.00016425,2]
[401381873,1768169442469,-433.0,0.00016428,2]
[401381876,1768169442479,-496.45188591,0.00016436,2]
[401381878,1768169442489,-600.0,0.00016438,2]
[401381880,1768169442500,-888.0,0.00016438,2]
[401381883,1768169442510,-19070.33,0.00016438,2]
[401381884,1768169442520,-800.0,0.00016438,2]
[401381887,1768169442529,-151.0,0.00016438,2]
[401381889,1768169442539,-164.94,0.0001644,2]
[401381891,1768169442548,-164.94,0.0001644,2]
[401381893,1768169442559,-496.45188591,0.00016455,2]
[401381895,1768169442569,-150.0,0.00016457,2]
[401381897,1768169442578,-150.0,0.00016457,2]
[401381899,1768169442589,-166.66,0.00016462,2]
[401381901,1768169442601,-150.0,0.0001647,2]
[401381903,1768169442611,-496.45188591,0.00016473,2]
[401381905,1768169442621,-150.0,0.00016477,2]
[401381907,1768169442631,-496.45188591,0.00016491,2]
[401381909,1768169442641,-496.45188591,0.00016509,2]
[401381911,1768169442650,-1000.0,0.00016515,2]
[401381913,1768169442660,-150.0,0.00016518,2]
[401381915,1768169442670,-496.45188591,0.00016527,2]
[401381917,1768169442684,-150.0,0.00016527,2]
[401381920,1768169442694,-150.0,0.00016537,2]
[401381922,1768169442704,-496.45188591,0.00016545,2]
[401381924,1768169442714,-1544.2,0.00016547,2]
[401381926,1768169442723,-150.0,0.0001656,2]
[401381928,1768169442733,-150.0,0.0001656,2]
[401381930,1768169442743,-150.0,0.0001656,2]
[401381932,1768169442752,-9835.0,0.00016563,2]
[401381934,1768169442762,-496.45188591,0.00016564,2]
[401381936,1768169442771,-496.45188591,0.00016582,2]
[401381938,1768169442781,-150.0,0.00016586,2]
[401381940,1768169442790,-15536.74710795,0.00016597,2]
[401381942,1768169442800,-496.45188591,0.000166,2]
[401381944,1768169442810,-150.0,0.00016615,2]
[401381946,1768169442819,-496.45188591,0.00016618,2]
[401381948,1768169442829,-150.0,0.00016624,2]
[401381950,1768169442839,-16321.49556416,0.0001663,2]
[401381952,1768169442850,-496.45188591,0.00016636,2]
[401381954,1768169442859,-150.0,0.0001665,2]
[401381956,1768169442869,-150.0,0.0001665,2]
[401381958,1768169442878,-150.0,0.0001665,2]
[401381960,1768169442888,-150.0,0.0001665,2]
[401381962,1768169442897,-496.45188591,0.00016655,2]
[401381964,1768169442907,-496.45188591,0.00016673,2]
[401381966,1768169442917,-52791.55120957,0.00016677,2]
[401381968,1768169442926,-200.0,0.0001668,2]
[401381971,1768169442936,-496.45188591,0.00016691,2]
[401381973,1768169442946,-150.0,0.00016691,2]
[401381975,1768169442956,-500.0,0.00016696,2]
[401381977,1768169442965,-496.45188591,0.00016709,2]
[401381979,1768169442975,-150.0,0.00016714,2]
[401381981,1768169442984,-150.0,0.00016714,2]
[401381983,1768169442994,-496.45188591,0.00016727,2]
[401381985,1768169443004,-150.0,0.00016729,2]
[401381987,1768169443015,-150.0,0.0001674,2]
[401381989,1768169443024,-150.0,0.0001674,2]
[401381991,1768169443034,-496.45188591,0.00016745,2]
[401381993,1768169443044,-150.0,0.00016754,2]
[401381995,1768169443054,-150.0,0.00016762,2]
[401381997,1768169443064,-496.45188591,0.00016764,2]
[401382000,1768169443075,-496.45188591,0.00016782,2]
[401382002,1768169443085,-150.0,0.00016782,2]
[401382004,1768169443095,-587.0,0.0001679,2]
[401382006,1768169443104,-496.45188591,0.000168,2]
[401382008,1768169443114,-496.45188591,0.00016818,2]
[401382010,1768169443125,-1544.2,0.00016821,2]
[401382012,1768169443134,-150.0,0.0001683,2]
[401382014,1768169443144,-150.0,0.00016835,2]
[401382016,1768169443154,-496.45188591,0.00016836,2]
[401382018,1768169443163,-150.0,0.00016843,2]
[401382020,1768169443173,-496.45188591,0.00016855,2]
[401382022,1768169443182,-150.0,0.00016855,2]
[401382024,1768169443192,-496.45188591,0.00016873,2]
[401382026,1768169443201,-150.0,0.00016875,2]
[401382028,1768169443212,-496.45188591,0.00016891,2]
[401382030,1768169443222,-150.0,0.00016892,2]
[401382032,1768169443232,-587.0,0.00016907,2]
[401382034,1768169443241,-496.45188591,0.00016909,2]
[401382036,1768169443251,-150.0,0.0001692,2]
[401382038,1768169443260,-150.0,0.0001692,2]
[401382040,1768169443270,-150.0,0.0001692,2]
[401382042,1768169443279,-2351.0,0.00016927,2]
[401382045,1768169443290,-496.45188591,0.00016927,2]
[401382047,1768169443299,-207.80047534,0.00016936,2]
[401382049,1768169443308,-150.0,0.00016941,2]
[401382051,1768169443318,-496.45188591,0.00016945,2]
[401382053,1768169443328,-496.45188591,0.00016964,2]
[401382055,1768169443338,-150.0,0.00016971,2]
[401382057,1768169443347,-150.0,0.00016971,2]
[401382059,1768169443357,-496.45188591,0.00016982,2]
[401382061,1768169443366,-150.0,0.00016987,2]
[401382063,1768169443376,-496.45188591,0.00017,2]
[401382065,1768169443386,-776.42891,0.00017,2]
[401382067,1768169443395,-150.0,0.0001701,2]
[401382069,1768169443405,-496.45188591,0.00017018,2]
[401382071,1768169443415,-150.0,0.00017018,2]
[401382073,1768169443424,-150.0,0.00017031,2]
[401382075,1768169443434,-15536.74710795,0.00017031,2]
[401382077,1768169443447,-496.45188591,0.00017036,2]
[401382080,1768169443457,-834.0,0.0001704,2]
[401382082,1768169443467,-150.0,0.00017047,2]
[401382084,1768169443476,-16321.49556416,0.00017053,2]
[401382086,1768169443486,-496.45188591,0.00017055,2]
[401382088,1768169443496,-173.27685075,0.00017073,2]
[401382091,1768169443506,-500.0,0.00017073,2]
[401382094,1768169443516,-500.0,0.00017073,2]
[401382097,1768169443526,-503.69857476,0.00017073,2]
[401382100,1768169443535,-500.0,0.00017073,2]
[401382102,1768169443545,-500.0,0.00017073,2]
[401382104,1768169443555,-500.0,0.00017073,2]
[401382105,1768169443564,-540.30872116,0.00017073,2]
[401382106,1768169443574,-500.0,0.00017073,2]
[401382107,1768169443583,-500.0,0.00017073,2]
[401382108,1768169443596,-500.0,0.00017073,2]
[401382109,1768169443605,-500.0,0.00017073,2]
[401382111,1768169443614,-166.87374433,0.00017073,2]
[401382113,1768169443624,-500.0,0.00017073,2]
[401382115,1768169443637,-500.0,0.00017073,2]
[401382117,1768169443646,-500.0,0.00017073,2]
[401382119,1768169443656,-500.0,0.00017073,2]
[401382121,1768169443668,-500.0,0.00017073,2]
[401382123,1768169443677,-500.0,0.00017073,2]
[401382125,1768169443686,-501.77392466,0.00017073,2]
[401382127,1768169443696,-500.0,0.00017073,2]
[401382129,1768169443705,-162.5649796,0.00017073,2]
[401382131,1768169443715,-500.0,0.00017073,2]
[401382133,1768169443725,-500.0,0.00017073,2]
[401382135,1768169443734,-500.0,0.00017073,2]
[401382137,1768169443744,-486.742849,0.00017073,2]
[401382139,1768169443753,-500.0,0.00017073,2]
[401382141,1768169443762,-500.0,0.00017073,2]
[401382143,1768169443772,-500.0,0.00017073,2]
[401382145,1768169443782,-500.0,0.00017073,2]
[401382148,1768169443792,-500.0,0.00017073,2]
[401382150,1768169443802,-169.14530325,0.00017073,2]
[401382152,1768169443811,-163.38938361,0.00017073,2]
[401382154,1768169443821,-500.0,0.00017073,2]
[401382156,1768169443831,-500.99700202,0.00017073,2]
[401382158,1768169443840,-500.0,0.00017073,2]
[401382160,1768169443850,-500.0,0.00017073,2]
[401382162,1768169443859,-500.0,0.00017073,2]
[401382164,1768169443869,-500.15222599,0.00017073,2]
[401382166,1768169443879,-500.0890643,0.00017073,2]
[401382168,1768169443888,-500.0,0.00017073,2]
[401382170,1768169443897,-496.45188591,0.00017073,2]
[401382172,1768169443906,-496.45188591,0.00017091,2]
[401382174,1768169443916,-1544.23539638,0.00017095,2]
[401382176,1768169443925,-500.0,0.00017098,2]
[401382178,1768169443935,-250.0,0.00017099,2]
[401382180,1768169443944,-1000.0,0.00017099,2]
[401382182,1768169443953,-260.89005731,0.00017099,2]
[401382184,1768169443962,-1000.0,0.00017099,2]
[401382186,1768169443971,-1000.0,0.00017099,2]
[401382188,1768169443982,-533.88981491,0.00017099,2]
[401382190,1768169443991,-250.0,0.00017099,2]
[401382192,1768169444000,-250.0,0.00017099,2]
[401382194,1768169444010,-1000.0,0.00017099,2]
[401382196,1768169444019,-500.0,0.00017099,2]
[401382198,1768169444029,-250.0,0.00017099,2]
[401382200,1768169444038,-1000.0,0.00017099,2]
[401382202,1768169444048,-500.0,0.00017099,2]
[401382204,1768169444057,-250.0,0.00017099,2]
[401382206,1768169444066,-1000.0,0.00017099,2]
[401382208,1768169444076,-500.0,0.00017099,2]
[401382210,1768169444085,-561.20369866,0.00017099,2]
[401382212,1768169444095,-250.0,0.00017099,2]
[401382215,1768169444105,-1000.0,0.00017099,2]
[401382217,1768169444114,-500.0,0.00017099,2]
[401382219,1768169444125,-250.0,0.00017099,2]
[401382221,1768169444135,-1000.0,0.00017099,2]
[401382223,1768169444144,-238.92822807,0.00017099,2]
[401382225,1768169444154,-250.0,0.00017099,2]
[401382227,1768169444164,-1000.0,0.00017099,2]
[401382229,1768169444174,-998.0,0.00017099,2]
[401382231,1768169444183,-250.0,0.00017099,2]
[401382233,1768169444192,-1000.0,0.00017099,2]
[401382235,1768169444202,-250.0,0.00017099,2]
[401382236,1768169444212,-1000.0,0.00017099,2]
[401382238,1768169444221,-250.0,0.00017099,2]
[401382241,1768169444231,-1000.0,0.00017099,2]
[401382243,1768169444240,-250.0,0.00017099,2]
[401382245,1768169444250,-578.20924308,0.00017099,2]
[401382247,1768169444260,-250.0,0.00017099,2]
[401382249,1768169444271,-1000.0,0.00017099,2]
[401382251,1768169444280,-250.0,0.00017099,2]
[401382253,1768169444290,-250.0,0.00017099,2]
[401382255,1768169444300,-250.0,0.00017099,2]
[401382257,1768169444310,-250.0,0.00017099,2]
[401382259,1768169444320,-982.63386351,0.00017099,2]
[401382261,1768169444329,-186.62122529,0.00017099,2]
[401382263,1768169444338,-250.0,0.00017099,2]
[401382265,1768169444347,-250.0,0.00017099,2]
[401382267,1768169444357,-250.0,0.00017099,2]
[401382269,1768169444366,-250.0,0.00017099,2]
[401382271,1768169444376,-250.0,0.00017099,2]
[401382273,1768169444385,-250.0,0.00017099,2]
[401382275,1768169444395,-250.0,0.00017099,2]
[401382277,1768169444405,-250.0,0.00017099,2]
[401382279,1768169444415,-250.0,0.00017099,2]
[401382280,1768169444424,-500.0,0.00017099,2]
[401382282,1768169444434,-500.0,0.00017099,2]
[401382284,1768169444443,-250.0,0.00017099,2]
[401382285,1768169444454,-250.0,0.00017099,2]
[401382287,1768169444463,-322.6107,0.00017099,2]
[401382289,1768169444473,-620.0,0.00017099,2]
[401382290,1768169444482,-670.58624095,0.00017099,2]
[401382292,1768169444493,-250.0,0.00017099,2]
[401382294,1768169444502,-151.0,0.00017099,2]
[401382295,1768169444512,-250.0,0.00017099,2]
[401382297,1768169444521,-151.0,0.00017099,2]
[401382299,1768169444531,-250.0,0.00017099,2]
[401382301,1768169444540,-150.0,0.000171,2]
[401382302,1768169444551,-150.0,0.000171,2]
[401382304,1768169444560,-150.0,0.000171,2]
[401382306,1768169444569,-150.0,0.000171,2]
[401382307,1768169444579,-150.0,0.000171,2]
[401382309,1768169444590,-150.0,0.000171,2]
[401382311,1768169444600,-496.45188591,0.00017109,2]
[401382312,1768169444610,-1000.0,0.00017112,2]
[401382314,1768169444620,-496.45188591,0.00017127,2]
[401382316,1768169444629,-496.45188591,0.00017145,2]
[401382318,1768169444639,-150.0,0.00017153,2]
[401382319,1768169444648,-496.45188591,0.00017164,2]
[401382321,1768169444658,-150.0,0.00017169,2]
[401382323,1768169444669,-200.0,0.00017174,2]
[401382325,1768169444679,-496.45188591,0.00017182,2]
[401382327,1768169444689,-150.0,0.00017182,2]
[401382328,1768169444698,-150.0,0.0001719,2]
[401382330,1768169444708,-496.45188591,0.000172,2]
[401382332,1768169444718,-23700.0,0.000172,6]
[401382333,1768169444728,-150.0,0.00017212,2]
[401382335,1768169444738,-496.45188591,0.00017218,2]
[401382337,1768169444748,-150.0,0.00017229,2]
[401382338,1768169444757,-150.0,0.00017229,2]
[401382340,1768169444768,-496.45188591,0.00017236,2]
[401382342,1768169444778,-496.45188591,0.00017255,2]
[401382344,1768169444787,-2171.6,0.00017255,2]
[401382346,1768169444797,-150.0,0.00017259,2]
[401382347,1768169444806,-2018.86,0.0001726,2]
[401382349,1768169444817,-496.45188591,0.00017273,2]
[401382351,1768169444826,-4071.0,0.00017279,2]
[401382353,1768169444836,-150.0,0.0001728,2]
[401382354,1768169444846,-150.0,0.0001728,2]
[401382356,1768169444855,-150.0,0.0001728,2]
[401382358,1768169444865,-496.45188591,0.00017291,2]
[401382360,1768169444874,-500.0,0.00017299,2]
[401382362,1768169444883,-500.0,0.00017299,2]
[401382363,1768169444892,-500.0,0.00017299,2]
[401382365,1768169444902,-1996.0,0.000173,2]
[401382367,1768169444912,-31600.0,0.000173,6]
[401382369,1768169444922,-150.0,0.00017308,2]
[401382371,1768169444932,-496.45188591,0.00017309,2]
[401382373,1768169444942,-2171.6,0.00017323,2]
[401382375,1768169444951,-150.0,0.00017325,2]
[401382376,1768169444961,-496.45188591,0.00017327,2]
[401382378,1768169444970,-207.80047533,0.00017343,2]
[401382380,1768169444980,-496.45188591,0.00017345,2]